bitfinex/quotes_SOLUSD_20241013
["timestamp","ask_amount","ask_price","bid_price","bid_amount"]
[1728813819622,22.6951,147.97,147.89,4.7102757]
[1728813821526,22.6951,147.97,147.89,3.35807716]
[1728813821904,23.776884,147.96,147.89,3.35807716]
[1728813823614,30.535484,147.96,147.88,20.0]
[1728813823817,30.535484,147.96,147.89,3.36394486]
[1728813824522,30.535484,147.96,147.89,5.86419918]
[1728813824735,30.535484,147.96,147.89,3.36394486]
[1728813825322,30.535484,147.96,147.89,5.86471042]
[1728813825508,30.535484,147.96,147.88,20.0]
[1728813825710,30.535484,147.96,147.89,5.86471042]
[1728813827713,23.776884,147.96,147.89,5.86471042]
[1728813827918,22.6951,147.97,147.85,3.36394486]
[1728813827919,23.776884,147.94,147.85,3.36394486]
[1728813829034,23.776884,147.94,147.85,21.35252385]
[1728813829214,23.776884,147.94,147.86,5.86471042]
[1728813829816,23.776884,147.92,147.86,5.86471042]
[1728813831527,22.0554,147.93,147.86,5.86471042]
[1728813832236,22.0554,147.93,147.86,7.21718017]
[1728813835138,22.0554,147.93,147.86,7.22451657]
[1728813835338,22.0554,147.93,147.87,3.86050557]
[1728813835537,22.0554,147.93,147.87,5.87204682]
[1728813836922,22.0554,147.93,147.87,5.88084939]
[1728813837124,22.0554,147.93,147.86,20.0]
[1728813837319,22.0554,147.93,147.87,5.88084939]
[1728813838150,28.8153,147.93,147.87,5.88084939]
[1728813838342,22.0554,147.93,147.87,5.88084939]
[1728813839147,22.0554,147.93,147.88,2.50810196]
[1728813841028,22.0554,147.93,147.87,3.37274743]
[1728813841226,22.0554,147.93,147.88,2.50983028]
[1728813841752,22.0554,147.93,147.87,5.88257771]
[1728813841933,22.0554,147.93,147.88,2.50983028]
[1728813843234,22.0554,147.93,147.89,2.50983028]
[1728813843540,22.0554,147.93,147.88,2.50983028]
[1728813843835,22.0554,147.93,147.89,2.50983028]
[1728813844040,22.0554,147.93,147.88,2.50983028]
[1728813844245,22.0554,147.93,147.89,2.50983028]
[1728813844438,22.0554,147.93,147.88,2.50983028]
[1728813844645,22.0554,147.93,147.89,2.50983028]
[1728813844847,22.0554,147.93,147.87,3.37274743]
[1728813844848,22.0554,147.93,147.88,2.51063768]
[1728813845039,22.0554,147.93,147.89,2.51063768]
[1728813845235,22.0554,147.93,147.87,5.88338511]
[1728813845436,22.0554,147.93,147.88,2.51063768]
[1728813845642,22.0554,147.93,147.87,5.88338511]
[1728813845950,22.0554,147.93,147.88,2.51063768]
[1728813847444,22.0554,147.93,147.89,2.51063768]
[1728813847649,22.0554,147.93,147.88,2.51063768]
[1728813847959,22.0554,147.93,147.89,2.51063768]
[1728813848139,22.0554,147.93,147.88,2.51063768]
[1728813848337,22.0554,147.93,147.87,3.37274743]
[1728813848534,22.0554,147.93,147.88,2.51098457]
[1728813848737,22.0554,147.93,147.84,20.0]
[1728813848957,22.0554,147.93,147.89,2.51102012]
[1728813849141,22.0554,147.93,147.85,5.88450072]
[1728813849447,22.0554,147.93,147.86,22.51102012]
[1728813849640,22.0554,147.93,147.87,2.51102012]
[1728813849972,22.0554,147.93,147.88,2.51102012]
[1728813851961,22.0554,147.93,147.86,5.88450072]
[1728813852133,22.0554,147.93,147.86,3.3734806]
[1728813852333,22.0554,147.93,147.87,2.51149554]
[1728813852562,22.0554,147.93,147.84,20.0]
[1728813852563,22.0554,147.93,147.88,2.51149554]
[1728813852763,22.0554,147.93,147.89,2.51149554]
[1728813852947,22.0554,147.93,147.87,2.51149554]
[1728813853152,22.0554,147.93,147.88,2.51149554]
[1728813853350,22.0554,147.93,147.89,2.51149554]
[1728813853550,22.0554,147.93,147.86,5.88469066]
[1728813853742,22.0554,147.93,147.87,2.51149554]
[1728813854042,22.0554,147.93,147.88,2.51149554]
[1728813854245,22.0554,147.93,147.89,2.51149554]
[1728813854448,22.0554,147.93,147.86,5.88469066]
[1728813854654,22.0554,147.93,147.87,2.51149554]
[1728813854852,22.0554,147.93,147.88,2.51149554]
[1728813855061,22.0554,147.93,147.89,2.51149554]
[1728813855369,22.0554,147.93,147.86,5.88469066]
[1728813855557,22.0554,147.93,147.87,2.51149554]
[1728813855863,22.0554,147.93,147.86,3.37319512]
[1728813856059,22.0554,147.93,147.87,2.51225427]
[1728813856260,22.0554,147.93,147.88,2.51225427]
[1728813856445,22.0554,147.93,147.89,2.51225427]
[1728813856764,22.0554,147.93,147.86,5.88600754]
[1728813857068,22.0554,147.93,147.87,2.51225427]
[1728813857254,22.0554,147.93,147.88,2.51225427]
[1728813857445,22.0554,147.93,147.89,2.51225427]
[1728813857646,22.0554,147.93,147.88,2.51225427]
[1728813857965,22.0554,147.93,147.89,2.51225427]
[1728813858261,22.0554,147.93,147.88,2.51225427]
[1728813858465,22.0554,147.93,147.89,2.51225427]
[1728813858667,22.0554,147.93,147.88,2.51225427]
[1728813858965,22.0554,147.93,147.89,2.51225427]
[1728813859168,22.0554,147.93,147.88,2.51225427]
[1728813859352,22.0554,147.93,147.89,2.51225427]
[1728813859548,22.0554,147.93,147.88,2.51225427]
[1728813859747,22.0554,147.93,147.89,2.51225427]
[1728813859966,22.0554,147.93,147.88,2.51225427]
[1728813860141,22.0554,147.93,147.89,2.51225427]
[1728813860341,22.0554,147.93,147.88,2.51225427]
[1728813860660,22.0554,147.93,147.89,2.51225427]
[1728813860859,22.0554,147.93,147.88,2.51225427]
[1728813861065,22.0554,147.93,147.89,2.51225427]
[1728813861368,22.0554,147.93,147.87,5.88600754]
[1728813861545,22.0554,147.93,147.88,5.88600754]
[1728813861749,22.0554,147.93,147.89,2.51225427]
[1728813862051,22.0554,147.93,147.86,5.88600754]
[1728813862250,22.0554,147.93,147.87,5.88600754]
[1728813862455,22.0554,147.93,147.88,5.88600754]
[1728813862656,22.0554,147.93,147.89,2.51225427]
[1728813862853,22.0554,147.93,147.87,3.37375327]
[1728813863061,22.0554,147.93,147.88,5.88609408]
[1728813863376,22.0554,147.93,147.89,2.51219937]
[1728813863563,22.0554,147.93,147.9,2.51219937]
[1728813863769,22.0554,147.93,147.87,5.88927914]
[1728813864068,22.0554,147.93,147.88,5.88938906]
[1728813864270,22.0554,147.93,147.89,5.88938906]
[1728813864476,22.0554,147.93,147.88,3.37712851]
[1728813864771,22.0554,147.93,147.89,2.51242597]
[1728813865177,22.0554,147.93,147.89,3.37712851]
[1728813865348,22.0554,147.93,147.88,3.37712851]
[1728813865671,22.0554,147.93,147.89,5.88949]
[1728813865878,22.0554,147.93,147.88,3.37712851]
[1728813866078,22.0554,147.93,147.89,5.88963755]
[1728813866285,22.0554,147.93,147.88,5.88963755]
[1728813866459,22.0554,147.93,147.89,5.88963755]
[1728813866773,22.0554,147.93,147.88,5.88963755]
[1728813866976,22.0554,147.93,147.89,5.88963755]
[1728813867159,22.0554,147.93,147.88,5.88963755]
[1728813867459,22.0554,147.93,147.89,5.88963755]
[1728813867646,22.0554,147.93,147.88,5.88963755]
[1728813867846,22.0554,147.93,147.89,5.88963755]
[1728813868153,22.0554,147.93,147.86,5.88963755]
[1728813868354,22.0554,147.93,147.87,5.88963755]
[1728813868557,22.0554,147.93,147.88,5.88963755]
[1728813868765,22.0554,147.93,147.89,5.88963755]
[1728813868952,22.0554,147.93,147.86,20.0]
[1728813869254,22.0554,147.93,147.87,5.88963755]
[1728813869451,22.0554,147.93,147.88,5.88963755]
[1728813869668,22.0554,147.93,147.89,5.88963755]
[1728813869869,22.0554,147.93,147.87,5.88963755]
[1728813870077,22.0554,147.93,147.88,5.88963755]
[1728813870349,22.0554,147.93,147.89,5.88963755]
[1728813870576,22.0554,147.93,147.84,20.0]
[1728813870780,22.0554,147.93,147.85,5.89512002]
[1728813870997,22.0554,147.93,147.86,5.89512002]
[1728813871276,22.0554,147.93,147.87,5.89575135]
[1728813871475,22.0554,147.93,147.88,5.89575135]
[1728813871656,22.0554,147.93,147.89,5.89575135]
[1728813871859,22.0554,147.93,147.9,5.89575135]
[1728813872059,22.0554,147.93,147.84,20.0]
[1728813872259,22.0554,147.93,147.86,20.0]
[1728813872494,22.0554,147.93,147.87,5.89758317]
[1728813872774,22.0554,147.93,147.88,5.89758317]
[1728813872967,22.0554,147.93,147.89,5.89758317]
[1728813873171,22.0554,147.93,147.9,5.89758317]
[1728813873380,22.0554,147.93,147.91,3.38310521]
[1728813873578,22.0554,147.93,147.86,20.0]
[1728813873775,22.0554,147.93,147.87,5.89954404]
[1728813874075,22.0554,147.93,147.88,5.89954404]
[1728813874279,22.0554,147.93,147.89,5.89954404]
[1728813874459,22.0554,147.93,147.9,2.51483815]
[1728813874666,22.0554,147.93,147.9,3.38472916]
[1728813875066,22.0554,147.93,147.91,3.38472916]
[1728813875261,22.0554,147.93,147.85,2.51523446]
[1728813875582,22.0554,147.93,147.84,21.35249469]
[1728813875583,22.0554,147.93,147.86,25.8999467]
[1728813875878,22.0554,147.93,147.87,5.8999467]
[1728813876075,22.0554,147.93,147.88,5.8999467]
[1728813876385,22.0554,147.93,147.89,5.8999467]
[1728813876565,22.0554,147.93,147.9,5.8999467]
[1728813876769,22.0554,147.93,147.91,3.38471224]
[1728813877083,22.0554,147.93,147.84,21.35249469]
[1728813877277,22.0554,147.93,147.86,20.0]
[1728813877477,22.0554,147.93,147.87,5.90068362]
[1728813877681,22.0554,147.93,147.88,5.90068362]
[1728813877884,22.0554,147.93,147.89,5.90068362]
[1728813878064,22.0554,147.93,147.9,5.90068362]
[1728813878261,22.0554,147.93,147.84,20.0]
[1728813878469,22.0554,147.93,147.85,3.86887247]
[1728813878674,22.0554,147.93,147.86,5.90157853]
[1728813878885,22.0554,147.93,147.87,2.51641644]
[1728813879183,22.0554,147.93,147.88,2.51641644]
[1728813879354,22.0554,147.93,147.89,2.51641644]
[1728813879557,22.0554,147.93,147.9,2.51641644]
[1728813879760,22.0554,147.93,147.87,3.38515973]
[1728813879966,22.0554,147.93,147.88,5.90180331]
[1728813880165,22.0554,147.93,147.89,5.90180331]
[1728813880358,22.0554,147.93,147.9,5.90180331]
[1728813880570,22.0554,147.93,147.86,3.38516209]
[1728813880768,22.0554,147.93,147.87,5.90210836]
[1728813880967,22.0554,147.93,147.88,5.90210836]
[1728813881187,22.0554,147.93,147.89,5.90210836]
[1728813881385,22.0554,147.93,147.9,5.90210836]
[1728813881585,22.0554,147.93,147.91,2.51697669]
[1728813881786,22.0554,147.93,147.86,23.38516209]
[1728813881984,22.0554,147.93,147.87,2.51739345]
[1728813882183,22.0554,147.93,147.88,2.51739345]
[1728813882380,22.0554,147.93,147.89,2.51739345]
[1728813882577,22.0554,147.93,147.9,2.51739345]
[1728813882759,22.0554,147.93,147.91,2.51739345]
[1728813882959,22.0554,147.93,147.86,23.38516209]
[1728813883193,22.0554,147.93,147.87,5.90305812]
[1728813883368,22.0554,147.93,147.88,5.90305812]
[1728813883669,22.0554,147.93,147.89,5.90305812]
[1728813883872,22.0554,147.93,147.9,5.90305812]
[1728813884091,22.0554,147.93,147.91,2.51781932]
[1728813884286,22.0554,147.93,147.86,23.38516209]
[1728813884468,22.0554,147.93,147.87,5.90408607]
[1728813884776,22.0554,147.93,147.88,5.90408607]
[1728813884970,22.0554,147.93,147.89,5.90408607]
[1728813885172,22.0554,147.93,147.9,5.90408607]
[1728813885375,22.0554,147.93,147.91,2.51874105]
[1728813885577,22.0554,147.93,147.92,2.51874105]
[1728813885780,22.0554,147.93,147.92,2.51906092]
[1728813885962,22.0554,147.93,147.92,2.51905658]
[1728813887988,28.8153,147.93,147.92,2.51905658]
[1728813888294,22.0554,147.93,147.92,2.51905658]
[1728813889300,22.0554,147.93,147.92,2.52075632]
[1728813889894,22.0554,147.93,147.85,3.38555386]
[1728813889895,23.776884,147.92,147.85,3.38555386]
[1728813890199,22.0554,147.93,147.86,3.38555386]
[1728813890497,22.0554,147.93,147.87,3.38555386]
[1728813890695,22.0554,147.93,147.88,3.38555386]
[1728813890890,22.0554,147.93,147.89,3.38555386]
[1728813891195,22.0554,147.93,147.9,3.38555386]
[1728813891496,22.0554,147.93,147.83,21.35250819]
[1728813891697,22.0554,147.93,147.84,3.38574855]
[1728813892001,23.776884,147.92,147.85,3.38574855]
[1728813892292,23.776884,147.92,147.86,3.38574855]
[1728813892507,23.776884,147.92,147.87,3.38574855]
[1728813892795,23.776884,147.92,147.83,20.0]
[1728813892998,23.776884,147.92,147.88,3.3857217]
[1728813893293,23.776884,147.92,147.84,3.3857217]
[1728813893593,23.776884,147.92,147.85,3.3857217]
[1728813893767,23.776884,147.92,147.86,3.3857217]
[1728813893966,23.776884,147.92,147.87,3.3857217]
[1728813894194,23.776884,147.92,147.88,3.3857217]
[1728813894492,23.776884,147.92,147.89,3.3857217]
[1728813894686,23.776884,147.92,147.83,21.35258631]
[1728813894901,23.776884,147.92,147.84,3.38520939]
[1728813895079,23.776884,147.92,147.85,3.38520939]
[1728813895390,23.776884,147.92,147.86,3.38520939]
[1728813895568,23.776884,147.92,147.87,3.38520939]
[1728813895871,23.776884,147.92,147.88,3.38520939]
[1728813896071,23.776884,147.92,147.89,3.38520939]
[1728813896271,23.776884,147.92,147.83,20.0]
[1728813896468,23.776884,147.92,147.84,3.38499278]
[1728813896678,23.776884,147.92,147.85,3.38499278]
[1728813896875,23.776884,147.92,147.86,3.38499278]
[1728813897087,23.776884,147.92,147.87,3.38499278]
[1728813897291,23.776884,147.92,147.88,3.38499278]
[1728813897486,23.776884,147.92,147.89,3.38499278]
[1728813897688,23.776884,147.92,147.83,20.0]
[1728813897897,23.776884,147.92,147.84,3.38478971]
[1728813898074,23.776884,147.92,147.85,3.38478971]
[1728813898275,23.776884,147.92,147.86,1.79808971]
[1728813898489,23.776884,147.92,147.83,20.0]
[1728813901682,23.776884,147.92,147.84,2.51872962]
[1728813901881,23.776884,147.92,147.85,2.51872962]
[1728813902078,23.776884,147.92,147.86,2.51872962]
[1728813902305,23.776884,147.92,147.87,2.51872962]
[1728813902524,23.776884,147.92,147.88,2.51872962]
[1728813902717,23.776884,147.92,147.89,2.51872962]
[1728813903012,23.776884,147.92,147.9,2.51874894]
[1728813903309,23.776884,147.92,147.83,20.0]
[1728813903613,23.776884,147.92,147.84,2.51879398]
[1728813903784,23.776884,147.92,147.85,2.51879398]
[1728813903985,23.776884,147.92,147.86,2.51879398]
[1728813903986,30.537284,147.92,147.86,2.51879398]
[1728813904300,30.537284,147.92,147.87,2.51879398]
[1728813904500,30.537284,147.92,147.88,2.51879398]
[1728813904692,30.537284,147.92,147.89,2.51879398]
[1728813904993,30.537284,147.92,147.9,2.51879398]
[1728813905190,30.537284,147.92,147.83,20.0]
[1728813905191,23.776884,147.92,147.83,20.0]
[1728813905412,22.0554,147.93,147.84,3.87121177]
[1728813905579,22.0554,147.93,147.85,2.51850185]
[1728813905784,22.0554,147.93,147.86,3.87097084]
[1728813906006,22.0554,147.93,147.87,2.51850185]
[1728813906207,22.0554,147.93,147.88,2.51850185]
[1728813906511,22.0554,147.93,147.89,2.51850185]
[1728813906697,22.0554,147.93,147.9,2.51850185]
[1728813906892,22.0554,147.93,147.91,2.51850185]
[1728813907204,23.776884,147.92,147.83,6.48943315]
[1728813907412,23.776884,147.92,147.84,3.87112297]
[1728813907583,23.776884,147.92,147.85,2.51846111]
[1728813907785,23.776884,147.92,147.86,2.51846111]
[1728813907997,23.776884,147.92,147.87,2.51846111]
[1728813908193,23.776884,147.92,147.88,2.51846111]
[1728813908399,23.776884,147.92,147.89,2.51846111]
[1728813908597,23.776884,147.92,147.9,2.51846111]
[1728813908809,23.776884,147.92,147.84,20.0]
[1728813909114,23.776884,147.92,147.85,2.51851311]
[1728813909419,23.776884,147.92,147.86,2.51851311]
[1728813909613,23.776884,147.92,147.87,2.51851311]
[1728813909812,23.776884,147.92,147.88,2.51851311]
[1728813910117,23.776884,147.92,147.89,2.51851311]
[1728813910421,23.776884,147.92,147.9,2.51851311]
[1728813910712,23.776884,147.92,147.85,3.3569571]
[1728813910917,23.776884,147.92,147.86,5.87544341]
[1728813911214,23.776884,147.92,147.87,5.87544341]
[1728813911394,23.776884,147.92,147.88,5.87544341]
[1728813911712,23.776884,147.92,147.84,21.35259855]
[1728813911713,23.776884,147.92,147.89,5.87544341]
[1728813912017,23.776884,147.92,147.9,2.51848631]
[1728813912216,23.776884,147.92,147.85,3.35699619]
[1728813912393,23.776884,147.92,147.86,5.87544806]
[1728813912588,23.776884,147.92,147.87,5.87544806]
[1728813912917,23.776884,147.92,147.88,5.87544806]
[1728813913213,23.776884,147.92,147.89,5.87544806]
[1728813913413,23.776884,147.92,147.9,2.51845187]
[1728813913618,23.776884,147.92,147.85,3.35698055]
[1728813913916,23.776884,147.92,147.86,5.87534465]
[1728813914086,23.776884,147.92,147.87,5.87534465]
[1728813914286,23.776884,147.92,147.88,5.87534465]
[1728813914487,23.776884,147.92,147.89,5.87534465]
[1728813914688,23.776884,147.92,147.9,2.5183641]
[1728813915019,23.776884,147.92,147.85,3.35695396]
[1728813915229,23.776884,147.92,147.86,5.87531722]
[1728813915391,23.776884,147.92,147.87,5.87531722]
[1728813915712,23.776884,147.92,147.88,5.87531722]
[1728813915900,23.776884,147.92,147.89,5.87531722]
[1728813916101,30.537384,147.92,147.9,2.51836326]
[1728813916312,30.537384,147.92,147.85,3.35703234]
[1728813916520,30.537384,147.92,147.86,5.87555412]
[1728813916697,30.537384,147.92,147.87,5.87555412]
[1728813916893,30.537384,147.92,147.88,5.87555412]
[1728813917220,23.776884,147.9,147.89,2.51852178]
[1728813917595,30.538184,147.9,147.89,2.51852178]
[1728813917812,30.538184,147.9,147.89,2.5188912]
[1728813918220,30.538184,147.9,147.81,20.0]
[1728813918520,30.538184,147.9,147.82,2.51905726]
[1728813918720,30.538184,147.9,147.83,2.51905726]
[1728813918908,30.538184,147.9,147.84,2.51905726]
[1728813919097,30.538184,147.9,147.85,5.87719007]
[1728813919296,30.538184,147.9,147.86,5.87719007]
[1728813919498,23.776884,147.9,147.87,2.51905726]
[1728813919717,23.776884,147.88,147.83,3.35813281]
[1728813919896,23.776884,147.88,147.81,20.0]
[1728813919897,23.776884,147.88,147.84,5.87501886]
[1728813920097,23.776884,147.88,147.85,5.87501886]
[1728813920315,23.776884,147.88,147.86,2.51688605]
[1728813920525,23.776884,147.88,147.83,3.35813281]
[1728813920700,23.776884,147.88,147.84,5.87439919]
[1728813920894,23.776884,147.88,147.85,5.87439919]
[1728813921218,23.776884,147.88,147.86,2.51626638]
[1728813921435,29.904084,147.88,147.82,3.35813281]
[1728813921718,36.666284,147.88,147.8,20.0]
[1728813921925,52.342384,147.88,147.81,2.51555431]
[1728813922223,52.342384,147.88,147.82,5.87156302]
[1728813922515,52.342384,147.88,147.83,5.87156302]
[1728813922722,52.342384,147.88,147.84,5.87156302]
[1728813922907,52.342384,147.88,147.85,2.51555431]
[1728813923107,52.342384,147.88,147.81,3.35600871]
[1728813923318,52.342384,147.88,147.82,5.87089745]
[1728813923614,52.342384,147.88,147.83,5.87089745]
[1728813923814,52.342384,147.88,147.84,2.51488874]
[1728813923999,52.342384,147.88,147.85,2.51488874]
[1728813924319,52.342384,147.88,147.82,3.35600871]
[1728813924517,52.342384,147.88,147.79,10.3344]
[1728813924518,52.342384,147.88,147.83,2.51454023]
[1728813924816,52.342384,147.88,147.84,2.51454023]
[1728813925048,52.342384,147.88,147.85,2.51454023]
[1728813925222,52.342384,147.88,147.8,3.35454765]
[1728813925395,52.342384,147.88,147.81,5.86855653]
[1728813925592,52.342384,147.88,147.82,5.86855653]
[1728813925792,52.342384,147.88,147.83,2.51400888]
[1728813926019,52.342384,147.88,147.84,2.51400888]
[1728813926218,52.342384,147.88,147.82,3.35454765]
[1728813926395,52.342384,147.88,147.83,2.51348273]
[1728813926592,52.342384,147.88,147.84,2.51348273]
[1728813926831,52.342384,147.88,147.82,3.35454765]
[1728813927121,52.342384,147.88,147.83,2.51347013]
[1728813927308,52.342384,147.88,147.84,2.51347013]
[1728813927511,52.342384,147.88,147.8,3.35454765]
[1728813927712,52.342384,147.88,147.79,10.3344]
[1728813927713,52.342384,147.88,147.81,5.86782287]
[1728813928013,52.342384,147.88,147.82,2.51327522]
[1728813928193,52.342384,147.88,147.83,2.51327522]
[1728813928396,52.342384,147.88,147.84,2.51327522]
[1728813928620,52.342384,147.88,147.81,5.86770235]
[1728813928818,52.342384,147.88,147.81,3.35454765]
[1728813929027,52.342384,147.88,147.82,2.51315932]
[1728813929237,52.342384,147.88,147.83,2.51315932]
[1728813929522,21.8033,147.88,147.8,24.70760169]
[1728813929704,21.8033,147.88,147.81,7.21996945]
[1728813929900,21.8033,147.88,147.82,2.51236776]
[1728813930098,21.8033,147.88,147.83,2.51236776]
[1728813930311,21.8033,147.88,147.84,2.51236776]
[1728813930526,21.8033,147.88,147.85,2.51236776]
[1728813930725,21.8033,147.88,147.82,2.51236776]
[1728813930928,21.8033,147.88,147.83,2.51236776]
[1728813931103,21.8033,147.88,147.81,3.35454765]
[1728813931104,21.8033,147.88,147.84,2.51236776]
[1728813931304,21.8033,147.88,147.82,2.51236776]
[1728813931545,21.8033,147.88,147.83,2.51236776]
[1728813931710,21.8033,147.88,147.84,2.51236776]
[1728813931910,21.8033,147.88,147.82,2.51236776]
[1728813932207,21.8033,147.88,147.83,2.51236776]
[1728813932408,21.8033,147.88,147.84,2.51165631]
[1728813932607,21.8033,147.88,147.82,2.51165631]
[1728813932815,21.8033,147.88,147.83,2.51165631]
[1728813933026,21.8033,147.88,147.84,2.51165631]
[1728813933429,28.5655,147.88,147.83,2.51165631]
[1728813933737,23.776884,147.87,147.84,2.51165631]
[1728813933905,23.776884,147.87,147.81,5.8626055]
[1728813934103,23.776884,147.87,147.82,2.51165631]
[1728813934328,23.776884,147.87,147.83,2.51165631]
[1728813934513,23.776884,147.87,147.84,2.51165631]
[1728813934711,23.776884,147.87,147.82,5.8626055]
[1728813935058,23.776884,147.87,147.83,2.51165631]
[1728813935328,23.776884,147.87,147.84,2.51165631]
[1728813935620,23.776884,147.87,147.81,5.8626055]
[1728813935823,23.776884,147.87,147.82,2.51165631]
[1728813936021,23.776884,147.87,147.83,2.51165631]
[1728813936225,23.776884,147.87,147.84,2.51145556]
[1728813936455,23.776884,147.87,147.82,2.51145556]
[1728813936642,23.776884,147.87,147.83,2.51145556]
[1728813936836,23.776884,147.87,147.84,2.51145556]
[1728813937149,23.776884,147.87,147.81,5.86273369]
[1728813937350,23.776884,147.87,147.82,2.5117845]
[1728813937537,23.776884,147.87,147.83,2.5117845]
[1728813937738,23.776884,147.87,147.84,2.5117845]
[1728813937925,23.776884,147.87,147.82,2.5117845]
[1728813938225,23.776884,147.87,147.83,2.5117845]
[1728813938428,23.776884,147.87,147.82,2.5117845]
[1728813938651,23.776884,147.87,147.83,2.5117845]
[1728813938854,23.776884,147.87,147.82,2.5117845]
[1728813939044,23.776884,147.87,147.83,2.5117845]
[1728813939242,23.776884,147.87,147.82,2.5117845]
[1728813939549,23.776884,147.87,147.83,2.5117845]
[1728813939843,28.5655,147.88,147.81,3.35094919]
[1728813940075,28.5655,147.88,147.82,2.51140274]
[1728813940253,28.5655,147.88,147.83,2.51140274]
[1728813940440,28.5655,147.88,147.82,2.51140274]
[1728813940751,28.5655,147.88,147.83,2.51140274]
[1728813940936,28.5655,147.88,147.84,2.51140274]
[1728813941338,28.5655,147.88,147.82,2.51140274]
[1728813941549,28.5655,147.88,147.83,2.51140274]
[1728813941738,28.5655,147.88,147.84,2.51140274]
[1728813942044,28.5655,147.88,147.82,2.51140274]
[1728813942362,28.5655,147.88,147.83,2.51140274]
[1728813942363,30.539684,147.87,147.83,2.51140274]
[1728813942534,30.539684,147.87,147.82,2.51140274]
[1728813942734,30.539684,147.87,147.83,2.51140274]
[1728813943060,30.539684,147.87,147.81,2.51140274]
[1728813943254,30.539684,147.87,147.82,2.51140274]
[1728813943553,30.539684,147.87,147.83,2.51140274]
[1728813943757,30.539684,147.87,147.81,2.51140274]
[1728813944053,30.539684,147.87,147.82,2.51140274]
[1728813944348,30.539684,147.87,147.83,2.51140274]
[1728813944555,30.539684,147.87,147.81,2.51140274]
[1728813944725,30.539684,147.87,147.82,2.51140274]
[1728813944930,30.539684,147.87,147.83,2.51140274]
[1728813945252,30.539684,147.87,147.81,2.51140274]
[1728813945460,30.539684,147.87,147.82,2.51140274]
[1728813945638,30.539684,147.87,147.83,2.51140274]
[1728813945840,30.539684,147.87,147.81,2.51140274]
[1728813946155,30.539684,147.87,147.82,2.51140274]
[1728813946456,30.539684,147.87,147.83,2.51140274]
[1728813946655,30.539684,147.87,147.81,2.51140274]
[1728813946827,30.539684,147.87,147.82,2.51140274]
[1728813947030,30.539684,147.87,147.83,2.51140274]
[1728813947244,30.539684,147.87,147.81,2.51132045]
[1728813947445,30.539684,147.87,147.82,2.51132045]
[1728813947762,30.539684,147.87,147.83,2.51132045]
[1728813947944,30.539684,147.87,147.81,2.51132045]
[1728813948255,30.539684,147.87,147.82,2.51132045]
[1728813948460,30.539684,147.87,147.83,2.51132045]
[1728813948630,30.539684,147.87,147.81,2.51132045]
[1728813948831,30.539684,147.87,147.82,2.51132045]
[1728813949045,30.539684,147.87,147.83,2.51132045]
[1728813949245,30.539684,147.87,147.81,2.51132045]
[1728813949439,30.539684,147.87,147.82,2.51132045]
[1728813949645,30.539684,147.87,147.83,2.51132045]
[1728813949839,30.539684,147.87,147.81,2.51132045]
[1728813950040,30.539684,147.87,147.82,2.51132045]
[1728813950254,30.539684,147.87,147.83,2.51132045]
[1728813950556,30.539684,147.87,147.81,2.51132045]
[1728813950739,30.539684,147.87,147.82,2.51132045]
[1728813950936,30.539684,147.87,147.83,2.51132045]
[1728813951136,30.539684,147.87,147.8,3.35094919]
[1728813951353,30.539684,147.87,147.81,2.51149271]
[1728813951545,30.539684,147.87,147.8,3.35094919]
[1728813951546,30.539684,147.87,147.82,2.51149271]
[1728813951749,30.539684,147.87,147.83,2.51149271]
[1728813951948,30.539684,147.87,147.81,2.51149271]
[1728813952148,30.539684,147.87,147.82,2.51149271]
[1728813952350,30.539684,147.87,147.83,2.51149271]
[1728813952652,30.539684,147.87,147.82,2.51149271]
[1728813952844,30.539684,147.87,147.83,2.51149271]
[1728813953045,30.539684,147.87,147.82,2.51149271]
[1728813953260,30.539684,147.87,147.83,2.51149271]
[1728813953444,30.539684,147.87,147.82,2.51149271]
[1728813953647,30.539684,147.87,147.83,2.51149271]
[1728813953956,30.539684,147.87,147.82,2.51149271]
[1728813954131,23.776884,147.87,147.83,2.51149271]
[1728813954327,23.776884,147.87,147.82,2.51149271]
[1728813954554,23.776884,147.87,147.83,2.51157972]
[1728813954744,23.776884,147.87,147.81,5.86346081]
[1728813955091,23.776884,147.87,147.82,2.51157972]
[1728813955356,23.776884,147.87,147.83,2.51157972]